[Event "Fagernes GM-A 2019"]
[Site "Fagernes"]
[Date "2019.04.18"]
[Round "6.19"]
[White "Lillevold, Frode"]
[Black "Lindbol, Aleksander"]
[Result "1/2-1/2"]
[ECO "A90"]
[WhiteElo "2076"]
[BlackElo "2139"]
[Annotator "NA"]
[PlyCount "119"]
[EventDate "2019.04.14"]
[EventType "tourn"]
[EventCountry "NOR"]
[SourceTitle "playchess.com"]
[Source "ChessBase"]
[SourceQuality "1"]
[TimeControl "40/7200:3600"]

1. d4 {[%emt 0:00:00]} f5 {[%emt 0:00:32]} 2. g3 {[%emt 0:00:40]} Nf6 {[%emt 0:00:23]} 3. Bg2 {[%emt 0:00:02]} e6 {[%emt 0:00:16]} 4. c4 {[%emt 0:00:29]} d5 {[%emt 0:00:22]} 5. Nh3 {[%emt 0:01:08]} c6 {[%emt 0:00:22]} 6. O-O {[%emt 0:00:23]} Bd6 {[%emt 0:00:14]} 7. Bf4 {[%emt 0:01:59]} Be7 {[%emt 0:00:17]} 8. Nd2 {[%emt 0:02:28]} O-O {[%emt 0:00:17]} 9. Qc2 {[%emt 0:04:35]} h6 {[%emt 0:00:28]} 10. Be5 {[%emt 0:11:05]} g5 {[%emt 0:13:33]} 11. e3 {[%emt 0:14:00]} Nbd7 {[%emt 0:04:55]} 12. f4 {[%emt 0:08:23]} Ng4 {[%emt 0:32:27]} 13. Rfe1 {[%emt 0:04:56]} Qe8 {[%emt 0:01:16]} 14. Nf2 {[%emt 0:02:01]} Ndxe5 {[%emt 0:10:42]} 15. dxe5 {[%emt 0:01:25]} Nxf2 {[%emt 0:05:57]} 16. Kxf2 {[%emt 0:00:12]} Bd7 {[%emt 0:09:59]} 17. Red1 {[%emt 0:14:09]} h5 {[%emt 0:06:51]} 18. Nf3 {[%emt 0:02:30]} g4 {[%emt 0:01:41]} 19. Nd4 {[%emt 0:01:16]} h4 {[%emt 0:04:29]} 20. Rac1 {[%emt 0:08:21]} b6 {[%emt 0:04:25]} 21. a3 {[%emt 0:06:15]} Rc8 {[%emt 0:06:13]} 22. Rd2 {[%emt 0:04:50]} b5 {[%emt 0:02:01]} 23. c5 {[%emt 0:02:39]} a5 {[%emt 0:00:43]} 24. b4 {[%emt 0:00:18]} axb4 {[%emt 0:01:53]} 25. axb4 {[%emt 0:00:01]} Ra8 {[%emt 0:00:08]} 26. Qb3 {[%emt 0:06:59]} Ra7 {[%emt 0:01:04]} 27. Ra2 {[%emt 0:00:15]} Rxa2+ {[%emt 0:02:46]} 28. Qxa2 {[%emt 0:00:11]} Qb8 {[%emt 0:02:25]} 29. Ra1 {[%emt 0:01:43]} Rc8 {[%emt 0:00:04]} 30. e4 {[%emt 0:05:04]} fxe4 {[%emt 0:00:02]} 31. Qe2 {[%emt 0:00:06]} hxg3+ {[%emt 0:00:45]} 32. hxg3 {[%emt 0:00:24]} Kf7 {[%emt 0:00:26]} 33. Qxg4 {[%emt 0:00:21]} Rh8 {[%emt 0:00:01]} 34. Bh3 {[%emt 0:02:22]} Rh6 {[%emt 0:00:01]} 35. Kg2 {[%emt 0:03:18]} Rg6 {[%emt 0:00:56]} 36. Qh5 {[%emt 0:00:52]} Kg7 {[%emt 0:00:01]} 37. f5 {[%emt 0:02:02]} exf5 {[%emt 0:00:02]} 38. Nxf5+ {[%emt 0:00:03]} Bxf5 {[%emt 0:00:10]} 39. Bxf5 {[%emt 0:01:35]} Rxg3+ {[%emt 0:00:24]} 40. Kxg3 {[%emt 0:00:27]} Qxe5+ {[%emt 0:00:01]} 41. Kg4 {[%emt 0:09:34]} Qxa1 {[%emt 0:03:26]} 42. Qg6+ {[%emt 0:10:34]} Kf8 {[%emt 0:00:19]} 43. Qh6+ {[%emt 0:00:08]} Qg7+ {[%emt 0:00:28]} 44. Qxg7+ {[%emt 0:00:04]} Kxg7 {[%emt 0:00:05]} 45. Bd7 {[%emt 0:00:07]} Kf6 {[%emt 0:04:23]} 46. Kf4 {[%emt 0:17:43]} Bf8 {[%emt 0:01:31]} 47. Bxc6 {[%emt 0:00:43]} Bh6+ {[%emt 0:00:08]} 48. Kg3 {[%emt 0:00:05]} Ke5 {[%emt 0:00:42]} 49. Bxb5 {[%emt 0:02:04]} d4 {[%emt 0:13:34]} 50. c6 {[%emt 0:09:41]} Kd6 {[%emt 0:00:24]} 51. Kf2 {[%emt 0:02:45]} d3 {[%emt 0:00:23]} 52. Ke1 {[%emt 0:02:27]} Bf4 {[%emt 0:01:26]} 53. Kd1 {[%emt 0:01:38]} Kd5 {[%emt 0:00:32]} 54. Ba6 {[%emt 0:01:33]} Kd4 {[%emt 0:00:37]} 55. Bc8 {[%emt 0:00:03]} e3 {[%emt 0:32:30]} 56. Bg4 {[%emt 0:01:04]} Kc4 {[%emt 0:00:00]} 57. Bh5 {[%emt 0:00:00]} Kxb4 {[%emt 0:00:00]} 58. Bg4 Kc5 {[%emt 0:00:00]} 59. Bh5 Kxc6 {[%emt 0:00:00]} 60. Bf3+ {[%emt 0:00:00]} 1/2-1/2

[Event "Fagernes GM-A 2019"]
[Site "Fagernes"]
[Date "2019.04.18"]
[Round "6.20"]
[White "Grover, Sigurd Loe"]
[Black "Fuglestein, Sander"]
[Result "1-0"]
[ECO "B10"]
[WhiteElo "2020"]
[BlackElo "2000"]
[Annotator "NA"]
[PlyCount "73"]
[EventDate "2019.04.14"]
[EventType "tourn"]
[EventCountry "NOR"]
[SourceTitle "playchess.com"]
[Source "ChessBase"]
[SourceQuality "1"]
[TimeControl "40/7200:3600"]

1. e4 {[%emt 0:00:11]} c6 {[%emt 0:00:18]} 2. c4 {[%emt 0:00:35]} d5 {[%emt 0:00:05]} 3. cxd5 {[%emt 0:00:13]} cxd5 {[%emt 0:00:08]} 4. exd5 {[%emt 0:00:04]} Nf6 {[%emt 0:00:18]} 5. Nc3 {[%emt 0:00:09]} Nxd5 {[%emt 0:00:29]} 6. Nf3 {[%emt 0:00:07]} Nc6 {[%emt 0:01:48]} 7. Bb5 {[%emt 0:00:11]} e6 {[%emt 0:04:28]} 8. O-O {[%emt 0:01:10]} Be7 {[%emt 0:01:49]} 9. d4 {[%emt 0:00:49]} O-O {[%emt 0:03:07]} 10. Re1 {[%emt 0:01:02]} a6 {[%emt 0:05:34]} 11. Bxc6 {[%emt 0:02:20]} bxc6 {[%emt 0:05:56]} 12. Ne5 {[%emt 0:08:44]} Nxc3 {[%emt 0:02:53]} 13. bxc3 {[%emt 0:00:18]} Qc7 {[%emt 0:07:56]} 14. Bf4 {[%emt 0:09:21]} Bd6 {[%emt 0:02:49]} 15. c4 {[%emt 0:02:15]} Rd8 {[%emt 0:16:56]} 16. Qf3 {[%emt 0:08:58]} f6 {[%emt 0:02:22]} 17. c5 {[%emt 0:02:54]} Bxe5 {[%emt 0:00:22]} 18. dxe5 {[%emt 0:03:09]} f5 {[%emt 0:00:21]} 19. Re3 {[%emt 0:23:54]} Rd5 {[%emt 0:06:30]} 20. Qh5 {[%emt 0:02:14]} Qf7 {[%emt 0:03:58]} 21. Qh4 {[%emt 0:00:54]} Rb8 {[%emt 0:02:38]} 22. Rg3 {[%emt 0:07:08]} Rb4 {[%emt 0:07:35]} 23. Qg5 {[%emt 0:10:09]} a5 {[%emt 0:11:26]} 24. h4 {[%emt 0:03:23]} a4 {[%emt 0:02:29]} 25. Bd2 {[%emt 0:01:24]} Rbd4 {[%emt 0:05:24]} 26. Be3 {[%emt 0:03:42]} Rd1+ {[%emt 0:00:57]} 27. Rxd1 {[%emt 0:00:07]} Rxd1+ {[%emt 0:00:01]} 28. Kh2 {[%emt 0:00:16]} Ba6 {[%emt 0:00:47]} 29. Qf4 {[%emt 0:00:30]} Bb5 {[%emt 0:01:49]} 30. Qf3 {[%emt 0:00:31]} Rd5 {[%emt 0:00:47]} 31. Bh6 {[%emt 0:00:45]} g6 {[%emt 0:00:35]} 32. h5 {[%emt 0:00:46]} Rd3 {[%emt 0:06:50]} 33. Qf4 {[%emt 0:04:47]} Rxg3 {[%emt 0:01:00]} 34. Qxg3 {[%emt 0:00:20]} Qe7 {[%emt 0:06:01]} 35. hxg6 {[%emt 0:00:44]} hxg6 {[%emt 0:00:59]} 36. Qxg6+ {[%emt 0:00:23]} Kh8 {[%emt 0:00:00]} 37. Kg1 {[%emt 0:00:56]} 1-0

[Event "Fagernes GM-A 2019"]
[Site "Fagernes"]
[Date "2019.04.18"]
[Round "6.21"]
[White "Gjare, Vidar"]
[Black "Shehzad, Shazil"]
[Result "0-1"]
[ECO "B41"]
[WhiteElo "1655"]
[BlackElo "2024"]
[Annotator "NA"]
[PlyCount "114"]
[EventDate "2019.04.14"]
[EventType "tourn"]
[EventCountry "NOR"]
[SourceTitle "playchess.com"]
[Source "ChessBase"]
[SourceQuality "1"]
[TimeControl "40/7200:3600"]

1. e4 {[%emt 0:00:06]} c5 {[%emt 0:00:01]} 2. Nf3 {[%emt 0:00:07]} e6 {[%emt 0:00:04]} 3. d4 {[%emt 0:00:26]} cxd4 {[%emt 0:00:03]} 4. Nxd4 {[%emt 0:00:19]} a6 {[%emt 0:00:04]} 5. a4 {[%emt 0:01:26]} Qc7 {[%emt 0:00:35]} 6. Bd3 {[%emt 0:04:01]} Nc6 {[%emt 0:02:25]} 7. Nxc6 {[%emt 0:06:42]} bxc6 {[%emt 0:02:34]} 8. O-O {[%emt 0:03:39]} d5 {[%emt 0:00:18]} 9. Be3 {[%emt 0:05:03]} Nf6 {[%emt 0:00:43]} 10. exd5 {[%emt 0:02:14]} cxd5 {[%emt 0:00:35]} 11. Bd4 {[%emt 0:03:36]} Bc5 {[%emt 0:00:56]} 12. c3 {[%emt 0:07:28]} Bxd4 {[%emt 0:01:48]} 13. cxd4 {[%emt 0:01:35]} Qb6 {[%emt 0:00:14]} 14. b3 {[%emt 0:03:53]} Rb8 {[%emt 0:00:45]} 15. Bc2 {[%emt 0:03:13]} Bd7 {[%emt 0:00:44]} 16. Nc3 {[%emt 0:01:32]} a5 {[%emt 0:02:38]} 17. Qd3 {[%emt 0:02:28]} O-O {[%emt 0:00:50]} 18. Rae1 {[%emt 0:02:27]} Rfc8 {[%emt 0:01:22]} 19. Re3 {[%emt 0:05:18]} Rc7 {[%emt 0:03:37]} 20. Ne2 {[%emt 0:08:16]} Bc8 {[%emt 0:01:00]} 21. Rg3 {[%emt 0:04:40]} Ba6 {[%emt 0:01:35]} 22. Qf3 {[%emt 0:00:14]} Kf8 {[%emt 0:02:12]} 23. Bd3 {[%emt 0:01:43]} Bxd3 {[%emt 0:02:57]} 24. Qxd3 {[%emt 0:00:07]} g6 {[%emt 0:01:29]} 25. Qe3 {[%emt 0:01:26]} Rbc8 {[%emt 0:05:09]} 26. Qh6+ {[%emt 0:02:20]} Kg8 {[%emt 0:02:23]} 27. Rh3 {[%emt 0:02:51]} Rc2 {[%emt 0:02:27]} 28. Qg5 {[%emt 0:04:29]} Rxe2 {[%emt 0:04:25]} 29. Qxf6 {[%emt 0:00:17]} Qd8 {[%emt 0:18:53]} 30. Qf4 {[%emt 0:03:47]} h5 {[%emt 0:00:36]} 31. Re3 {[%emt 0:01:41]} Rec2 {[%emt 0:04:10]} 32. Rf3 {[%emt 0:02:01]} Qc7 {[%emt 0:01:29]} 33. Qxc7 {[%emt 0:02:59]} R8xc7 {[%emt 0:00:08]} 34. Rd3 {[%emt 0:02:06]} R7c3 {[%emt 0:00:47]} 35. Rxc3 {[%emt 0:01:45]} Rxc3 {[%emt 0:00:27]} 36. Rb1 {[%emt 0:00:06]} Rd3 {[%emt 0:00:04]} 37. f3 {[%emt 0:00:26]} Rxd4 {[%emt 0:00:05]} 38. Kf2 {[%emt 0:00:32]} Rd2+ {[%emt 0:00:14]} 39. Kg3 {[%emt 0:00:48]} Rd4 {[%emt 0:01:56]} 40. Kf2 {[%emt 0:05:41]} Rd2+ {[%emt 0:00:13]} 41. Kg3 {[%emt 1:00:12]} Ra2 {[%emt 1:01:13]} 42. Rc1 {[%emt 0:05:57]} Rb2 {[%emt 0:00:16]} 43. Rc5 {[%emt 0:00:08]} Rxb3 {[%emt 0:00:30]} 44. Rxa5 {[%emt 0:00:07]} Kg7 {[%emt 0:00:28]} 45. Ra8 {[%emt 0:01:44]} Kf6 {[%emt 0:00:30]} 46. h4 {[%emt 0:01:09]} Kf5 {[%emt 0:00:28]} 47. a5 {[%emt 0:00:48]} Rb2 {[%emt 0:00:55]} 48. a6 {[%emt 0:00:41]} Ra2 {[%emt 0:00:40]} 49. Rf8 {[%emt 0:04:00]} f6 {[%emt 0:01:18]} 50. Ra8 {[%emt 0:00:00]} e5 {[%emt 0:00:00]} 51. a7 {[%emt 0:00:00]} d4 {[%emt 0:00:00]} 52. Kh3 {[%emt 0:00:00]} Kf4 {[%emt 0:00:00]} 53. Rf8 {[%emt 0:00:00]} Rxa7 {[%emt 0:00:00]} 54. Rxf6+ {[%emt 0:00:00]} Ke3 {[%emt 0:00:00]} 55. Rxg6 {[%emt 0:00:00]} Rd7 {[%emt 0:00:00]} 56. Re6 {[%emt 0:00:00]} d3 {[%emt 0:00:00]} 57. Rxe5+ {[%emt 0:00:00]} Kf2 {[%emt 0:00:00]} 0-1

[Event "Fagernes GM-A 2019"]
[Site "Fagernes"]
[Date "2019.04.19"]
[Round "7.5"]
[White "Urkedal, Frode Olav Olsen"]
[Black "Mikalsen, Erlend"]
[Result "1-0"]
[ECO "E16"]
[WhiteElo "2513"]
[BlackElo "2397"]
[Annotator "RC"]
[PlyCount "151"]
[EventDate "2019.04.14"]
[EventType "tourn"]
[EventCountry "NOR"]
[SourceTitle "playchess.com"]
[Source "ChessBase"]
[SourceQuality "1"]
[TimeControl "40/7200:3600"]

1. d4 {[%emt 0:00:04]} Nf6 {[%emt 0:00:16]} 2. Nf3 {[%emt 0:00:23]} b6 {[%emt 0:01:18]} 3. c4 {[%emt 0:00:26]} e6 {[%emt 0:00:10]} 4. g3 {[%emt 0:00:03]} Ba6 {[%emt 0:00:26]} 5. Nbd2 {[%emt 0:00:05]} Bb7 {[%emt 0:01:31]} 6. Bg2 {[%emt 0:00:57]} Be7 {[%emt 0:01:09]} 7. O-O {[%emt 0:08:16]} O-O {[%emt 0:01:42]} 8. Re1 {[%emt 0:05:32]} d5 {[%emt 0:04:48]} 9. cxd5 {[%emt 0:00:15]} exd5 {[%emt 0:03:31]} 10. b3 {[%emt 0:00:14]} Nbd7 {[%emt 0:07:24]} 11. Bb2 {[%emt 0:00:12]} Ne4 {[%emt 0:00:46]} 12. Rc1 {[%emt 0:01:54]} Ndf6 {[%emt 0:05:21]} 13. Ne5 {[%emt 0:03:05]} c5 {[%emt 0:07:16]} 14. Nd3 {[%emt 0:10:31]} Rc8 {[%emt 0:03:49]} 15. dxc5 {[%emt 0:02:46]} bxc5 {[%emt 0:00:15]} 16. Nxe4 {[%emt 0:01:02]} Nxe4 {[%emt 0:00:12]} 17. Nf4 {[%emt 0:01:27]} Bf6 {[%emt 0:08:18]} 18. Bxe4 {[%emt 0:02:45]} dxe4 {[%emt 0:02:26]} 19. Qxd8 {[%emt 0:00:17]} Bxd8 {[%emt 0:00:27]} 20. Red1 {[%emt 0:03:19]} Bb6 {[%emt 0:04:41]} 21. Nd5 {[%emt 0:14:16]} Rfe8 {[%emt 0:01:38]} 22. Ne3 {[%emt 0:01:37]} Rcd8 {[%emt 0:05:35]} 23. Nf5 {[%emt 0:12:21]} f6 {[%emt 0:00:47]} 24. Nd6 {[%emt 0:01:05]} Re7 {[%emt 0:00:05]} 25. Nxb7 {[%emt 0:00:04]} Rxd1+ {[%emt 0:00:06]} 26. Rxd1 {[%emt 0:00:05]} Rxb7 {[%emt 0:00:03]} 27. Ba3 {[%emt 0:00:57]} Kf7 {[%emt 0:02:52]} 28. Rc1 {[%emt 0:02:56]} Rc7 {[%emt 0:01:52]} 29. Rc4 {[%emt 0:08:23]} f5 {[%emt 0:00:31]} 30. Kg2 {[%emt 0:04:12]} Ke6 {[%emt 0:01:20]} 31. f3 {[%emt 0:00:25]} Kd5 {[%emt 0:00:25]} 32. fxe4+ {[%emt 0:04:37]} fxe4 {[%emt 0:00:04]} 33. Bc1 {[%emt 0:00:48]} Rc6 {[%emt 0:02:21]} 34. Be3 {[%emt 0:02:27]} Bc7 {[%emt 0:06:51]} 35. Ra4 {[%emt 0:02:08]} Bb6 {[%emt 0:01:00]} 36. Kf2 {[%emt 0:04:17]} Rf6+ {[%emt 0:01:46]} 37. Kg2 {[%emt 0:01:26]} Rc6 {[%emt 0:00:16]} 38. h4 {[%emt 0:01:11]} h5 {[%emt 0:01:18]} 39. g4 {[%emt 0:04:02]} g6 {[%emt 0:03:32]} 40. Kg3 {[%emt 0:02:52]} Bc7+ {[%emt 0:06:20]} 41. Bf4 {[%emt 1:04:23]} Bb6 {[%emt 1:00:30]} 42. Rc4 {[%emt 0:00:00]} Re6 {[%emt 0:00:00]} 43. g5 {[%emt 0:00:00]} Ba5 {[%emt 0:00:00]} 44. Rc1 {[%emt 0:00:00]} e3 {[%emt 0:00:00]} 45. Kf3 {[%emt 0:00:00]} Bd2 {[%emt 0:00:00]} 46. Rc4 {[%emt 0:00:00]} Ra6 {[%emt 0:00:00]} 47. Re4 {[%emt 0:00:00]} Rxa2 {[%emt 0:00:00]} 48. Re5+ {[%emt 0:00:00]} Kd4 {[%emt 0:00:00]} 49. Re6 {[%emt 0:00:00]} Kc3 {[%emt 0:00:00]} 50. Rxg6 {[%emt 0:00:00]} Kxb3 {[%emt 0:00:00]} 51. Rh6 {[%emt 0:00:00]} Ra1 {[%emt 0:00:00]} 52. g6 {[%emt 0:00:00]} Rg1 {[%emt 0:00:00]} 53. Bg3 {[%emt 0:00:00]} Rf1+ {[%emt 0:00:00]} 54. Kg2 {[%emt 0:00:00]} Rf8 {[%emt 0:00:00]} 55. Rxh5 {[%emt 0:00:00]} c4 {[%emt 0:00:00]} 56. Be5 {[%emt 0:00:00]} Bc3 {[%emt 0:00:00]} 57. g7 {[%emt 0:00:00]} Rg8 {[%emt 0:00:00]} 58. Bxc3 {[%emt 0:00:00]} Kxc3 {[%emt 0:00:00]} 59. Rg5 {[%emt 0:00:00]} Kd2 {[%emt 0:00:00]} 60. h5 {[%emt 0:00:00]} c3 {[%emt 0:00:00]} 61. h6 {[%emt 0:00:00]} c2 {[%emt 0:00:00]} 62. h7 {[%emt 0:00:00]} Rxg7 {[%emt 0:00:00]} 63. Rxg7 {[%emt 0:00:00]} c1=Q {[%emt 0:00:00]} 64. h8=Q {[%emt 0:00:00]} Qc6+ {[%emt 0:00:00]} 65. Kh2 {[%emt 0:00:00]} Qd6+ {[%emt 0:00:00]} 66. Rg3 {[%emt 0:00:00]} Qf4 {[%emt 0:00:00]} 67. Qh5 {[%emt 0:00:33]} Ke1 {[%emt 0:03:50]} 68. Qf3 {[%emt 0:00:01]} Qh6+ {[%emt 0:00:17]} 69. Kg2 {[%emt 0:00:01]} Kd2 {[%emt 0:00:18]} 70. Rg4 {[%emt 0:00:10]} Qb6 {[%emt 0:00:13]} 71. Rg5 {[%emt 0:00:07]} Qe6 {[%emt 0:03:09]} 72. Qd5+ {[%emt 0:00:01]} Qxd5+ {[%emt 0:00:02]} 73. Rxd5+ {[%emt 0:00:01]} Kxe2 {[%emt 0:00:01]} 74. Ra5 {[%emt 0:00:01]} Kd2 {[%emt 0:00:48]} 75. Rxa7 {[%emt 0:00:04]} e2 {[%emt 0:00:07]} 76. Ra2+ {[%emt 0:00:01]} 1-0

[Event "Fagernes GM-A 2019"]
[Site "Fagernes"]
[Date "2019.04.19"]
[Round "7.7"]
[White "Postny, Evgeny"]
[Black "Nielsen, Andre"]
[Result "1-0"]
[ECO "D56"]
[WhiteElo "2612"]
[BlackElo "2201"]
[Annotator "RC"]
[PlyCount "71"]
[EventDate "2019.04.14"]
[EventType "tourn"]
[EventCountry "NOR"]
[SourceTitle "playchess.com"]
[Source "ChessBase"]
[SourceQuality "1"]
[TimeControl "40/7200:3600"]

1. Nf3 {[%emt 0:01:05]} d5 {[%emt 0:00:56]} 2. d4 {[%emt 0:00:06]} Nf6 {[%emt 0:00:37]} 3. c4 {[%emt 0:00:07]} e6 {[%emt 0:00:33]} 4. Nc3 {[%emt 0:00:07]} Be7 {[%emt 0:01:40]} 5. Bg5 {[%emt 0:00:12]} O-O {[%emt 0:01:02]} 6. e3 {[%emt 0:00:06]} h6 {[%emt 0:14:29]} 7. Bh4 {[%emt 0:00:07]} Ne4 {[%emt 0:01:25]} 8. Bxe7 {[%emt 0:01:44]} Qxe7 {[%emt 0:00:51]} 9. Rc1 {[%emt 0:04:35]} Nxc3 {[%emt 0:03:40]} 10. Rxc3 {[%emt 0:00:04]} c6 {[%emt 0:03:33]} 11. Qc2 {[%emt 0:03:57]} Nd7 {[%emt 0:02:17]} 12. cxd5 {[%emt 0:00:23]} exd5 {[%emt 0:05:28]} 13. Bd3 {[%emt 0:00:19]} Nf6 {[%emt 0:04:34]} 14. O-O {[%emt 0:01:21]} Re8 {[%emt 0:02:25]} 15. Ne5 {[%emt 0:03:13]} Ng4 {[%emt 0:16:32]} 16. f4 {[%emt 0:01:49]} c5 {[%emt 0:02:09]} 17. Bb5 {[%emt 0:16:46]} Rd8 {[%emt 0:07:23]} 18. Nxg4 {[%emt 0:06:22]} Bxg4 {[%emt 0:00:31]} 19. dxc5 {[%emt 0:00:06]} a6 {[%emt 0:02:06]} 20. Ba4 {[%emt 0:00:58]} d4 {[%emt 0:07:02]} 21. exd4 {[%emt 0:00:49]} Rxd4 {[%emt 0:00:23]} 22. Rg3 {[%emt 0:12:29]} Rad8 {[%emt 0:05:11]} 23. Rxg4 {[%emt 0:07:30]} Qe3+ {[%emt 0:00:29]} 24. Kh1 {[%emt 0:00:08]} Rxa4 {[%emt 0:00:19]} 25. Qxa4 {[%emt 0:00:46]} Qe2 {[%emt 0:00:17]} 26. Rxg7+ {[%emt 0:06:52]} Kxg7 {[%emt 0:00:15]} 27. Rg1 {[%emt 0:00:07]} Qxb2 {[%emt 0:01:37]} 28. Qe4 {[%emt 0:00:11]} Qxa2 {[%emt 0:09:30]} 29. Qxb7 {[%emt 0:02:31]} Qc2 {[%emt 0:00:24]} 30. Qxa6 {[%emt 0:02:35]} Rd1 {[%emt 0:04:11]} 31. Qa3 {[%emt 0:04:33]} Qd2 {[%emt 0:09:41]} 32. h3 {[%emt 0:01:21]} Rxg1+ {[%emt 0:00:33]} 33. Kxg1 {[%emt 0:00:05]} Qd4+ {[%emt 0:01:06]} 34. Kh2 {[%emt 0:00:08]} Kh7 {[%emt 0:01:18]} 35. Qc1 {[%emt 0:00:07]} Qd7 {[%emt 0:02:02]} 36. Qc3 {[%emt 0:02:01]} 1-0

[Event "Fagernes GM-A 2019"]
[Site "Fagernes"]
[Date "2019.04.19"]
[Round "7.8"]
[White "Efroimski, Marsel"]
[Black "Vorobiov, Evgeny E."]
[Result "1/2-1/2"]
[ECO "B80"]
[WhiteElo "2287"]
[BlackElo "2565"]
[Annotator "ChessBase"]
[PlyCount "89"]
[EventDate "2019.04.14"]
[EventType "tourn"]
[EventCountry "NOR"]
[SourceTitle "playchess.com"]
[Source "ChessBase"]
[SourceQuality "1"]
[TimeControl "40/7200:3600"]

1. e4 {[%emt 0:01:41]} c5 {[%emt 0:00:06]} 2. Nf3 {[%emt 0:00:03]} e6 {[%emt 0:00:05]} 3. d4 {[%emt 0:01:41]} cxd4 {[%emt 0:00:07]} 4. Nxd4 {[%emt 0:00:01]} Nf6 {[%emt 0:00:12]} 5. Nc3 {[%emt 0:00:12]} d6 {[%emt 0:00:06]} 6. g3 {[%emt 0:08:07]} Nc6 {[%emt 0:01:41]} 7. Bg2 {[%emt 0:00:07]} Bd7 {[%emt 0:00:13]} 8. O-O {[%emt 0:00:30]} Be7 {[%emt 0:00:42]} 9. b3 {[%emt 0:02:48]} O-O {[%emt 0:02:34]} 10. Bb2 {[%emt 0:10:59]} a6 {[%emt 0:01:24]} 11. Nxc6 {[%emt 0:07:36]} Bxc6 {[%emt 0:00:26]} 12. Re1 {[%emt 0:12:43]} Qc7 {[%emt 0:03:38]} 13. Qe2 {[%emt 0:04:16]} b5 {[%emt 0:01:03]} 14. Rad1 {[%emt 0:18:09]} b4 {[%emt 0:06:06]} 15. Nb1 {[%emt 0:01:04]} a5 {[%emt 0:03:59]} 16. a4 {[%emt 0:03:32]} Nd7 {[%emt 0:07:06]} 17. Nd2 {[%emt 0:05:19]} Rac8 {[%emt 0:03:13]} 18. Nc4 {[%emt 0:07:39]} Rfd8 {[%emt 0:11:52]} 19. Rd2 {[%emt 0:06:32]} Nb6 {[%emt 0:12:47]} 20. Ne3 {[%emt 0:04:24]} Bf8 {[%emt 0:05:52]} 21. Qh5 {[%emt 0:02:02]} Nd7 {[%emt 0:12:58]} 22. Ng4 {[%emt 0:00:39]} f6 {[%emt 0:01:56]} 23. Bf1 {[%emt 0:06:20]} Nc5 {[%emt 0:01:15]} 24. Bc4 {[%emt 0:01:25]} Qf7 {[%emt 0:01:26]} 25. Qxf7+ {[%emt 0:02:49]} Kxf7 {[%emt 0:00:06]} 26. f3 {[%emt 0:00:23]} Bxa4 {[%emt 0:05:35]} 27. Ra1 {[%emt 0:00:17]} Bc6 {[%emt 0:00:50]} 28. Rxa5 {[%emt 0:00:08]} Ra8 {[%emt 0:00:17]} 29. Rxa8 {[%emt 0:00:08]} Rxa8 {[%emt 0:00:04]} 30. c3 {[%emt 0:01:53]} bxc3 {[%emt 0:07:43]} 31. Bxc3 {[%emt 0:00:01]} Rb8 {[%emt 0:00:30]} 32. Ne3 {[%emt 0:00:47]} g6 {[%emt 0:10:04]} 33. Ra2 {[%emt 0:00:18]} Rb7 {[%emt 0:00:22]} 34. Ra3 {[%emt 0:01:35]} Bh6 {[%emt 0:01:59]} 35. Bd4 {[%emt 0:00:15]} Ke7 {[%emt 0:00:30]} 36. Kf2 {[%emt 0:00:43]} Kd7 {[%emt 0:01:46]} 37. Bxf6 {[%emt 0:00:41]} Bxe4 {[%emt 0:01:38]} 38. Ng4 {[%emt 0:00:08]} Bc1 {[%emt 0:00:16]} 39. Ra1 {[%emt 0:00:22]} h5 {[%emt 0:00:25]} 40. Ne5+ {[%emt 0:01:19]} dxe5 {[%emt 0:01:30]} 41. Rxc1 {[%emt 1:00:09]} Bf5 {[%emt 1:02:03]} 42. Rd1+ {[%emt 0:00:00]} Ke8 {[%emt 0:00:00]} 43. Rd8+ {[%emt 0:00:00]} Kf7 {[%emt 0:00:00]} 44. Bxe5 {[%emt 0:00:00]} Nxb3 {[%emt 0:00:00]} 45. Rb8 {[%emt 0:00:00]} 1/2-1/2

[Event "Fagernes GM-A 2019"]
[Site "Fagernes"]
[Date "2019.04.19"]
[Round "7.10"]
[White "Notkevich, Benjamin Arvola"]
[Black "Gullaksen, Eirik"]
[Result "0-1"]
[ECO "B32"]
[WhiteElo "2495"]
[BlackElo "2324"]
[Annotator "ChessBase"]
[PlyCount "92"]
[EventDate "2019.04.14"]
[EventType "tourn"]
[EventCountry "NOR"]
[SourceTitle "playchess.com"]
[Source "ChessBase"]
[SourceQuality "1"]
[TimeControl "40/7200:3600"]

1. e4 {[%emt 0:01:10]} c5 {[%emt 0:00:13]} 2. Nf3 {[%emt 0:00:08]} Nc6 {[%emt 0:00:16]} 3. d4 {[%emt 0:00:07]} cxd4 {[%emt 0:00:19]} 4. Nxd4 {[%emt 0:00:07]} e5 {[%emt 0:00:24]} 5. Nb5 {[%emt 0:00:05]} d6 {[%emt 0:00:13]} 6. N1c3 {[%emt 0:00:05]} a6 {[%emt 0:00:25]} 7. Na3 {[%emt 0:00:05]} Be7 {[%emt 0:00:15]} 8. Nc4 {[%emt 0:00:12]} b5 {[%emt 0:00:25]} 9. Ne3 {[%emt 0:00:06]} Nf6 {[%emt 0:00:21]} 10. Bd3 {[%emt 0:00:28]} O-O {[%emt 0:00:24]} 11. O-O {[%emt 0:00:04]} Rb8 {[%emt 0:00:46]} 12. Ned5 {[%emt 0:02:15]} Nxd5 {[%emt 0:03:08]} 13. Nxd5 {[%emt 0:00:04]} Bg5 {[%emt 0:02:45]} 14. Bxg5 {[%emt 0:01:07]} Qxg5 {[%emt 0:00:12]} 15. c3 {[%emt 0:00:25]} Qd8 {[%emt 0:06:55]} 16. Qe2 {[%emt 0:17:41]} Be6 {[%emt 0:08:34]} 17. a4 {[%emt 0:01:48]} Bxd5 {[%emt 0:00:51]} 18. exd5 {[%emt 0:00:04]} Ne7 {[%emt 0:00:10]} 19. axb5 {[%emt 0:17:08]} axb5 {[%emt 0:00:39]} 20. Ra7 {[%emt 0:02:41]} Nxd5 {[%emt 0:12:45]} 21. Bxh7+ {[%emt 0:01:08]} Kh8 {[%emt 0:00:21]} 22. Bc2 {[%emt 0:05:48]} Nf6 {[%emt 0:01:43]} 23. Rd1 {[%emt 0:09:01]} Kg8 {[%emt 0:06:22]} 24. g4 {[%emt 0:13:26]} g6 {[%emt 0:11:35]} 25. Qf3 {[%emt 0:04:53]} b4 {[%emt 0:08:35]} 26. Ra6 {[%emt 0:10:15]} Qc8 {[%emt 0:05:36]} 27. Qxf6 {[%emt 0:19:23]} Qxg4+ {[%emt 0:01:20]} 28. Kh1 {[%emt 0:02:46]} b3 {[%emt 0:00:08]} 29. Rg1 {[%emt 0:03:13]} Qxg1+ {[%emt 0:00:51]} 30. Kxg1 {[%emt 0:00:06]} bxc2 {[%emt 0:00:08]} 31. Ra1 {[%emt 0:00:41]} Rxb2 {[%emt 0:00:08]} 32. Rc1 {[%emt 0:00:21]} Rb1 {[%emt 0:00:12]} 33. Qg5 {[%emt 0:00:09]} Rc8 {[%emt 0:00:05]} 34. Kg2 {[%emt 0:01:34]} Rxc1 {[%emt 0:00:12]} 35. Qxc1 {[%emt 0:00:04]} Rxc3 {[%emt 0:00:09]} 36. h4 {[%emt 0:00:26]} f6 {[%emt 0:02:38]} 37. Kf1 {[%emt 0:00:15]} d5 {[%emt 0:00:28]} 38. Ke2 {[%emt 0:00:02]} d4 {[%emt 0:00:23]} 39. Kd2 {[%emt 0:00:01]} e4 {[%emt 0:01:09]} 40. Ke2 {[%emt 0:00:01]} Kf7 {[%emt 0:01:03]} 41. Ke1 {[%emt 0:03:52]} Ke6 {[%emt 0:01:13]} 42. Ke2 {[%emt 0:00:20]} Kd5 {[%emt 0:00:24]} 43. Ke1 {[%emt 0:00:12]} f5 {[%emt 0:01:04]} 44. Ke2 {[%emt 0:01:01]} f4 {[%emt 0:00:33]} 45. Ke1 {[%emt 0:01:09]} Kc4 {[%emt 0:00:53]} 46. Kf1 {[%emt 0:03:14]} d3 {[%emt 0:01:33]} 0-1